[Event "The Allsvenskan 2024/25 Div I 3: SS Manhem - Linkopings ASS"]
[Site "Goteborgs Schackcentrum, Vegatan 20, Gothenburg, Sweden"]
[Date "2025.03.15"]
[Round "1.1"]
[White "Klashed, Martin"]
[Black "Strom-Engdahl, Alexander"]
[Result "*"]
[TimeControl "90 minutes for 40 moves + 30 minutes for the rest of the game + 30 seconds per move from move one."]
[WhiteClock "00:03:32"]
[BlackClock "00:06:27"]
[ReferenceTime "W/2025-03-15T16:51:50.291+01:00"]
[BlackTitle "FM"]
[WhiteFideId "1702033"]
[BlackFideId "1741586"]
[WhiteElo "2190"]
[BlackElo "2328"]

1. e4 {[%clk 01:30:49]} {[%emt 00:00:11]} c5 {[%clk 01:30:12]} {[%emt
00:00:48]} 2. Nf3 {[%clk 01:30:53]} {[%emt 00:00:26]} Nc6 {[%clk 01:30:33]}
{[%emt 00:00:09]} 3. d4 {[%clk 01:30:40]} {[%emt 00:00:43]} cxd4 {[%clk
01:30:58]} {[%emt 00:00:06]} 4. Nxd4 {[%clk 01:31:04]} {[%emt 00:00:06]} Nf6
{[%clk 01:31:19]} {[%emt 00:00:09]} 5. Nc3 {[%clk 01:31:22]} {[%emt 00:00:11]}
e5 {[%clk 01:31:45]} {[%emt 00:00:05]} 6. Ndb5 {[%clk 01:31:21]} {[%emt
00:00:30]} d6 {[%clk 01:31:50]} {[%emt 00:00:25]} 7. Bg5 {[%clk 01:31:10]}
{[%emt 00:00:41]} a6 {[%clk 01:32:12]} {[%emt 00:00:09]} 8. Na3 {[%clk
01:31:31]} {[%emt 00:00:09]} b5 {[%clk 01:32:24]} {[%emt 00:00:18]} 9. Nd5
{[%clk 01:31:25]} {[%emt 00:00:36]} Be7 {[%clk 01:32:40]} {[%emt 00:00:14]} 10.
Bxf6 {[%clk 01:31:37]} {[%emt 00:00:18]} Bxf6 {[%clk 01:32:58]} {[%emt
00:00:11]} 11. c3 {[%clk 01:31:22]} {[%emt 00:00:46]} Rb8 {[%clk 01:33:21]}
{[%emt 00:00:06]} 12. Nc2 {[%clk 01:31:41]} {[%emt 00:00:11]} Bg5 {[%clk
01:33:44]} {[%emt 00:00:07]} 13. a4 {[%clk 01:31:20]} {[%emt 00:00:51]} bxa4
{[%clk 01:32:51]} {[%emt 00:01:24]} 14. Ncb4 {[%clk 01:30:59]} {[%emt
00:00:51]} Nxb4 {[%clk 01:30:03]} {[%emt 00:03:18]} 15. cxb4 {[%clk 01:27:26]}
{[%emt 00:04:03]} Bd7 {[%clk 01:29:20]} {[%emt 00:01:13]} 16. Bxa6 {[%clk
01:26:44]} {[%emt 00:01:12]} O-O {[%clk 01:26:37]} {[%emt 00:03:14]} 17. O-O
{[%clk 01:22:42]} {[%emt 00:04:31]} Kh8 {[%clk 01:22:41]} {[%emt 00:04:25]} 18.
b5 {[%clk 00:49:40]} {[%emt 00:33:34]} Bxb5 {[%clk 01:17:50]} {[%emt 00:05:19]}
19. Bxb5 {[%clk 00:49:48]} {[%emt 00:00:23]} Rxb5 {[%clk 01:18:13]} {[%emt
00:00:06]} 20. Qxa4 {[%clk 00:38:43]} {[%emt 00:11:36]} Rxb2 {[%clk 01:16:41]}
{[%emt 00:02:02]} 21. Qc6 {[%clk 00:34:22]} {[%emt 00:04:51]} Qb8 {[%clk
01:05:01]} {[%emt 00:12:10]} 22. g3 {[%clk 00:32:06]} {[%emt 00:02:46]} Rd8
{[%clk 00:45:34]} {[%emt 00:19:57]} 23. h4 {[%clk 00:29:11]} {[%emt 00:03:25]}
Bd2 {[%clk 00:44:45]} {[%emt 00:01:16]} 24. Ra4 {[%clk 00:17:35]} {[%emt
00:12:08]} Qc8 {[%clk 00:24:24]} {[%emt 00:20:51]} 25. Qxc8 {[%clk 00:13:09]}
{[%emt 00:04:56]} Rxc8 {[%clk 00:24:47]} {[%emt 00:00:06]} 26. Ra7 {[%clk
00:13:01]} {[%emt 00:00:39]} Rf8 {[%clk 00:22:43]} {[%emt 00:02:35]} 27. Rd7
{[%clk 00:07:11]} {[%emt 00:06:19]} Bb4 {[%clk 00:19:31]} {[%emt 00:03:42]} 28.
Nxb4 {[%clk 00:04:48]} {[%emt 00:02:53]} Rxb4 {[%clk 00:19:50]} {[%emt
00:00:12]} 29. Rxd6 {[%clk 00:05:14]} {[%emt 00:00:03]} Rxe4 {[%clk 00:20:14]}
{[%emt 00:00:06]} 30. Rd7 {[%clk 00:04:23]} {[%emt 00:01:21]} g6 {[%clk
00:12:54]} {[%emt 00:07:51]} 31. Rc1 {[%clk 00:04:19]} {[%emt 00:00:35]} Kg7
{[%clk 00:12:11]} {[%emt 00:01:12]} 32. Rcc7 {[%clk 00:04:27]} {[%emt
00:00:22]} Re1+ {[%clk 00:11:36]} {[%emt 00:01:04]} 33. Kg2 {[%clk 00:04:41]}
{[%emt 00:00:17]} e4 {[%clk 00:06:26]} {[%emt 00:05:41]} 34. Re7 {[%clk
00:03:16]} {[%emt 00:01:54]} Kf6 {[%clk 00:06:50]} {[%emt 00:00:06]} 35. g4
{[%clk 00:02:29]} {[%emt 00:01:16]} h6 {[%clk 00:06:08]} {[%emt 00:01:13]} 36.
Kg3 {[%clk 00:02:01]} {[%emt 00:00:58]} Rg1+ {[%clk 00:05:08]} {[%emt
00:01:30]} 37. Kh3 {[%clk 00:02:09]} {[%emt 00:00:21]} Re1 {[%clk 00:03:46]}
{[%emt 00:01:53]} 38. Kg3 {[%clk 00:02:32]} {[%emt 00:00:07]} Re2 {[%clk
00:03:34]} {[%emt 00:00:41]} 39. Rb7 {[%clk 00:02:28]} {[%emt 00:00:33]} g5
{[%clk 00:02:16]} {[%emt 00:01:49]} 40. h5 {[%clk 00:02:11]} {[%emt 00:00:47]}
Re1 {[%clk 00:02:44]} {[%emt 00:00:02]} 41. Kg2 {[%clk 00:02:08]} {[%emt
00:00:34]} Rb1 {[%clk 00:01:50]} {[%emt 00:01:22]} 42. Rxf7+ {[%clk 00:01:27]}
{[%emt 00:01:13]} Rxf7 {[%clk 00:02:12]} {[%emt 00:00:08]} 43. Rxb1 {[%clk
00:01:54]} {[%emt 00:00:03]} Ke5 {[%clk 00:02:02]} {[%emt 00:00:39]} 44. Rb4
{[%clk 00:20:40]} {[%emt 00:11:44]} Rf6 {[%clk 00:27:51]} {[%emt 00:04:41]} 45.
Ra4 {[%clk 00:20:34]} {[%emt 00:00:37]} Rd6 {[%clk 00:24:16]} {[%emt 00:04:04]}
46. Kg3 {[%clk 00:15:34]} {[%emt 00:05:30]} Rd3+ {[%clk 00:16:39]} {[%emt
00:08:07]} 47. Kg2 {[%clk 00:15:52]} {[%emt 00:00:13]} Kf4 {[%clk 00:16:05]}
{[%emt 00:01:04]} 48. Ra6 {[%clk 00:15:30]} {[%emt 00:00:51]} Kxg4 {[%clk
00:15:25]} {[%emt 00:01:10]} 49. Rxh6 {[%clk 00:15:39]} {[%emt 00:00:22]} e3
{[%clk 00:14:53]} {[%emt 00:01:01]} 50. fxe3 {[%clk 00:15:44]} {[%emt
00:00:25]} Rxe3 {[%clk 00:14:48]} {[%emt 00:00:36]} 51. Rh8 {[%clk 00:09:44]}
{[%emt 00:06:30]} Re2+ {[%clk 00:12:20]} {[%emt 00:02:57]} 52. Kf1 {[%clk
00:07:16]} {[%emt 00:02:59]} Rh2 {[%clk 00:08:44]} {[%emt 00:04:06]} 53. Kg1
{[%clk 00:02:54]} {[%emt 00:04:52]} Kg3 {[%clk 00:06:02]} {[%emt 00:03:11]} 54.
Ra8 {[%clk 00:02:23]} {[%emt 00:01:01]} Rxh5 {[%clk 00:06:10]} {[%emt
00:00:23]} 55. Ra3+ {[%clk 00:02:40]} {[%emt 00:00:12]} Kh4 {[%clk 00:06:21]}
{[%emt 00:00:16]} 56. Ra4+ {[%clk 00:02:50]} {[%emt 00:00:24]} g4 {[%clk
00:06:43]} {[%emt 00:00:08]} 57. Ra3 {[%clk 00:02:41]} {[%emt 00:00:38]} Rb5
{[%clk 00:06:32]} {[%emt 00:00:41]} 58. Rc3 {[%clk 00:02:57]} {[%emt 00:00:14]}
Rb2 {[%clk 00:06:10]} {[%emt 00:00:52]} 59. Ra3 {[%clk 00:03:12]} {[%emt
00:00:15]} Rb1+ {[%clk 00:06:04]} {[%emt 00:00:37]} 60. Kg2 {[%clk 00:03:33]}
{[%emt 00:00:08]} Rb2+ {[%clk 00:06:27]} {[%emt 00:00:07]} *

[Event "The Allsvenskan 2024/25 Div I 3: SS Manhem - Linkopings ASS"]
[Site "Goteborgs Schackcentrum, Vegatan 20, Gothenburg, Sweden"]
[Date "2025.03.15"]
[Round "1.2"]
[White "Winsnes, Rikard"]
[Black "Andersson, Mats"]
[Result "1-0"]
[TimeControl "90 minutes for 40 moves + 30 minutes for the rest of the game + 30 seconds per move from move one."]
[WhiteTitle "IM"]
[BlackTitle "FM"]
[WhiteFideId "1700430"]
[BlackFideId "1700561"]
[WhiteElo "2357"]
[BlackElo "2263"]

1. e4 {[%clk 01:19:09]} {[%emt 00:11:51]} e6 {[%clk 01:29:11]} {[%emt
00:01:49]} 2. d4 {[%clk 01:19:11]} {[%emt 00:00:26]} d5 {[%clk 01:29:32]}
{[%emt 00:00:09]} 3. Nd2 {[%clk 01:19:35]} {[%emt 00:00:07]} c5 {[%clk
01:29:02]} {[%emt 00:01:00]} 4. exd5 {[%clk 01:19:39]} {[%emt 00:00:26]} exd5
{[%clk 01:28:47]} {[%emt 00:00:46]} 5. Ngf3 {[%clk 01:18:42]} {[%emt 00:01:25]}
Nc6 {[%clk 01:28:36]} {[%emt 00:00:41]} 6. Bb5 {[%clk 01:16:34]} {[%emt
00:02:40]} Qe7+ {[%clk 01:26:03]} {[%emt 00:03:02]} 7. Be2 {[%clk 01:15:26]}
{[%emt 00:01:38]} Qc7 {[%clk 01:18:34]} {[%emt 00:07:58]} 8. O-O {[%clk
01:13:45]} {[%emt 00:02:12]} Nf6 {[%clk 01:18:41]} {[%emt 00:00:23]} 9. Re1
{[%clk 01:07:57]} {[%emt 00:06:18]} cxd4 {[%clk 01:18:20]} {[%emt 00:00:51]} 10.
Nb3 {[%clk 01:06:53]} {[%emt 00:01:34]} Be7 {[%clk 01:12:13]} {[%emt 00:06:37]}
11. Nbxd4 {[%clk 01:06:37]} {[%emt 00:00:46]} O-O {[%clk 01:12:15]} {[%emt
00:00:27]} 12. h3 {[%clk 01:04:50]} {[%emt 00:02:17]} Bd7 {[%clk 01:04:33]}
{[%emt 00:08:12]} 13. Be3 {[%clk 01:03:28]} {[%emt 00:01:53]} Rfe8 {[%clk
00:59:52]} {[%emt 00:05:11]} 14. c3 {[%clk 01:02:05]} {[%emt 00:01:53]} a6
{[%clk 00:56:46]} {[%emt 00:03:35]} 15. Qd3 {[%clk 00:57:49]} {[%emt 00:04:46]}
Ne4 {[%clk 00:47:41]} {[%emt 00:09:36]} 16. Rad1 {[%clk 00:57:11]} {[%emt
00:01:08]} Rad8 {[%clk 00:42:02]} {[%emt 00:06:07]} 17. Bf1 {[%clk 00:55:17]}
{[%emt 00:02:26]} Bc8 {[%clk 00:41:09]} {[%emt 00:01:23]} 18. Nxc6 {[%clk
00:50:31]} {[%emt 00:05:17]} bxc6 {[%clk 00:40:36]} {[%emt 00:01:01]} 19. Bd4
{[%clk 00:50:01]} {[%emt 00:00:59]} a5 {[%clk 00:30:12]} {[%emt 00:10:56]} 20.
Qe3 {[%clk 00:45:46]} {[%emt 00:04:43]} c5 {[%clk 00:24:04]} {[%emt 00:06:39]}
21. Be5 {[%clk 00:45:52]} {[%emt 00:00:25]} Qb7 {[%clk 00:18:31]} {[%emt
00:06:02]} 22. c4 {[%clk 00:44:04]} {[%emt 00:02:19]} Bf6 {[%clk 00:17:24]}
{[%emt 00:01:37]} 23. Bxf6 {[%clk 00:40:08]} {[%emt 00:04:26]} Nxf6 {[%clk
00:17:48]} {[%emt 00:00:06]} 24. Qxc5 {[%clk 00:39:46]} {[%emt 00:00:52]} Qxb2
{[%clk 00:14:33]} {[%emt 00:03:45]} 25. Qxa5 {[%clk 00:39:54]} {[%emt
00:00:22]} Bd7 {[%clk 00:07:03]} {[%emt 00:07:57]} 26. cxd5 {[%clk 00:38:35]}
{[%emt 00:01:51]} Rc8 {[%clk 00:05:22]} {[%emt 00:02:11]} 27. Rxe8+ {[%clk
00:30:24]} {[%emt 00:08:42]} Bxe8 {[%clk 00:05:43]} {[%emt 00:00:09]} 28. d6
{[%clk 00:30:21]} {[%emt 00:00:33]} h6 {[%clk 00:02:48]} {[%emt 00:03:24]} 29.
Qd2 {[%clk 00:26:49]} {[%emt 00:04:01]} Rc2 {[%clk 00:03:04]} {[%emt 00:00:16]}
30. Qe3 {[%clk 00:26:45]} {[%emt 00:00:34]} Ba4 {[%clk 00:02:33]} {[%emt
00:01:00]} 31. Qa7 {[%clk 00:24:13]} {[%emt 00:03:01]} Bc6 {[%clk 00:00:33]}
{[%emt 00:02:31]} 32. Nd4 {[%clk 00:23:27]} {[%emt 00:01:17]} Rc1 {[%clk
00:00:55]} {[%emt 00:00:08]} 33. Rxc1 {[%clk 00:21:43]} {[%emt 00:02:14]} Qxc1
{[%clk 00:01:19]} {[%emt 00:00:06]} 34. Qb8+ {[%clk 00:21:52]} {[%emt
00:00:21]} Kh7 {[%clk 00:01:19]} {[%emt 00:00:30]} 35. Qc8 {[%clk 00:21:33]}
{[%emt 00:00:48]} Qc5 {[%clk 00:01:34]} {[%emt 00:00:15]} 36. Bd3+ {[%clk
00:20:57]} {[%emt 00:01:08]} g6 {[%clk 00:01:54]} {[%emt 00:00:10]} 37. Nxc6
{[%clk 00:21:15]} {[%emt 00:00:11]} Qxd6 {[%clk 00:00:57]} {[%emt 00:01:26]} 38.
Qb7 {[%clk 00:19:55]} {[%emt 00:01:51]} Kg7 {[%clk 00:01:18]} {[%emt 00:00:08]}
39. Qb5 {[%clk 00:20:02]} {[%emt 00:00:23]} 1-0

[Event "The Allsvenskan 2024/25 Div I 3: SS Manhem - Linkopings ASS"]
[Site "Goteborgs Schackcentrum, Vegatan 20, Gothenburg, Sweden"]
[Date "2025.03.15"]
[Round "1.3"]
[White "Fransson, Jorgen"]
[Black "Welin, Mats"]
[Result "1/2-1/2"]
[TimeControl "90 minutes for 40 moves + 30 minutes for the rest of the game + 30 seconds per move from move one."]
[BlackTitle "FM"]
[WhiteFideId "1701827"]
[BlackFideId "1705180"]
[WhiteElo "2153"]
[BlackElo "2296"]

1. d4 {[%clk 01:30:56]} {[%emt 00:00:03]} Nf6 {[%clk 01:30:30]} {[%emt
00:00:31]} 2. Nf3 {[%clk 01:31:10]} {[%emt 00:00:15]} d5 {[%clk 01:30:06]}
{[%emt 00:00:55]} 3. c4 {[%clk 01:31:27]} {[%emt 00:00:12]} e6 {[%clk
01:29:25]} {[%emt 00:01:11]} 4. Nc3 {[%clk 01:30:30]} {[%emt 00:01:28]} Be7
{[%clk 01:29:20]} {[%emt 00:00:35]} 5. cxd5 {[%clk 01:29:54]} {[%emt 00:01:06]}
exd5 {[%clk 01:29:36]} {[%emt 00:00:15]} 6. Qc2 {[%clk 01:30:04]} {[%emt
00:00:18]} c6 {[%clk 01:28:21]} {[%emt 00:01:46]} 7. Bg5 {[%clk 01:30:23]}
{[%emt 00:00:11]} g6 {[%clk 01:28:15]} {[%emt 00:00:37]} 8. e3 {[%clk
01:26:48]} {[%emt 00:04:04]} Bf5 {[%clk 01:21:54]} {[%emt 00:06:51]} 9. Bd3
{[%clk 01:27:03]} {[%emt 00:00:14]} Bxd3 {[%clk 01:22:16]} {[%emt 00:00:09]} 10.
Qxd3 {[%clk 01:27:26]} {[%emt 00:00:07]} Nbd7 {[%clk 01:22:34]} {[%emt
00:00:11]} 11. O-O {[%clk 01:27:40]} {[%emt 00:00:17]} O-O {[%clk 01:22:45]}
{[%emt 00:00:20]} 12. Rab1 {[%clk 01:27:38]} {[%emt 00:00:31]} a5 {[%clk
01:19:00]} {[%emt 00:04:15]} 13. a3 {[%clk 01:21:53]} {[%emt 00:06:15]} Re8
{[%clk 01:14:32]} {[%emt 00:04:58]} 14. Rfe1 {[%clk 01:16:30]} {[%emt
00:05:54]} Ne4 {[%clk 01:09:16]} {[%emt 00:05:45]} 15. Bxe7 {[%clk 01:16:24]}
{[%emt 00:00:35]} Qxe7 {[%clk 01:09:32]} {[%emt 00:00:15]} 16. Nd2 {[%clk
01:15:35]} {[%emt 00:01:19]} f5 {[%clk 01:01:43]} {[%emt 00:08:19]} 17. f3
{[%clk 01:14:18]} {[%emt 00:01:47]} Nxd2 {[%clk 00:48:21]} {[%emt 00:13:52]} 18.
Qxd2 {[%clk 01:14:15]} {[%emt 00:00:34]} Qg5 {[%clk 00:47:10]} {[%emt
00:01:41]} 19. Re2 {[%clk 01:09:11]} {[%emt 00:05:32]} Re6 {[%clk 00:43:11]}
{[%emt 00:04:31]} 20. Rbe1 {[%clk 01:07:05]} {[%emt 00:02:35]} Nb6 {[%clk
00:37:58]} {[%emt 00:05:43]} 21. a4 {[%clk 00:56:00]} {[%emt 00:11:34]} Nc4
{[%clk 00:23:38]} {[%emt 00:14:51]} 22. Qc1 {[%clk 00:53:57]} {[%emt 00:02:33]}
Rae8 {[%clk 00:23:21]} {[%emt 00:00:47]} 23. Nd1 {[%clk 00:53:05]} {[%emt
00:01:21]} Nd6 {[%clk 00:18:19]} {[%emt 00:05:32]} 24. Qc3 {[%clk 00:48:44]}
{[%emt 00:04:52]} Qd8 {[%clk 00:17:57]} {[%emt 00:00:52]} 25. Nf2 {[%clk
00:47:32]} {[%emt 00:01:42]} Qb6 {[%clk 00:15:02]} {[%emt 00:03:25]} 26. Nd3
{[%clk 00:43:22]} {[%emt 00:04:40]} R6e7 {[%clk 00:14:18]} {[%emt 00:01:15]} 27.
b3 {[%clk 00:32:32]} {[%emt 00:11:18]} Qc7 {[%clk 00:11:47]} {[%emt 00:03:02]}
28. Nf2 {[%clk 00:29:26]} {[%emt 00:03:37]} Qd8 {[%clk 00:09:23]} {[%emt
00:02:53]} 29. Qd3 {[%clk 00:26:55]} {[%emt 00:03:00]} Re6 {[%clk 00:08:35]}
{[%emt 00:01:20]} 30. Qd2 {[%clk 00:24:53]} {[%emt 00:02:27]} Qb6 {[%clk
00:07:36]} {[%emt 00:01:33]} 31. Qc3 {[%clk 00:22:08]} {[%emt 00:03:15]} R6e7
{[%clk 00:06:14]} {[%emt 00:01:53]} 32. Nd3 {[%clk 00:22:00]} {[%emt 00:00:37]}
Nf7 {[%clk 00:06:19]} {[%emt 00:00:24]} 33. Kh1 {[%clk 00:19:32]} {[%emt
00:02:58]} Qc7 {[%clk 00:06:17]} {[%emt 00:00:33]} 34. Kg1 {[%clk 00:19:34]}
{[%emt 00:00:28]} Ng5 {[%clk 00:04:53]} {[%emt 00:01:54]} 35. Ne5 {[%clk
00:17:36]} {[%emt 00:02:28]} Nf7 {[%clk 00:04:52]} {[%emt 00:00:31]} 36. Nd3
{[%clk 00:17:03]} {[%emt 00:01:03]} Ng5 {[%clk 00:04:53]} {[%emt 00:00:29]} 37.
Ne5 {[%clk 00:16:14]} {[%emt 00:01:19]} Nf7 {[%clk 00:05:09]} {[%emt 00:00:14]}
38. f4 {[%clk 00:10:14]} {[%emt 00:06:30]} Nd6 {[%clk 00:05:08]} {[%emt
00:00:32]} 39. b4 {[%clk 00:08:21]} {[%emt 00:02:22]} Ra8 {[%clk 00:03:50]}
{[%emt 00:01:47]} 40. Rb1 {[%clk 00:06:27]} {[%emt 00:02:23]} axb4 {[%clk
00:03:13]} {[%emt 00:01:09]} 41. Rxb4 {[%clk 00:06:21]} {[%emt 00:00:36]} Ra6
{[%clk 00:00:46]} {[%emt 00:02:57]} 42. g4 {[%clk 00:03:58]} {[%emt 00:02:54]}
fxg4 {[%clk 00:27:50]} {[%emt 00:03:25]} 43. Nxg4 {[%clk 00:34:04]} {[%emt
00:00:24]} Kg7 {[%clk 00:22:21]} {[%emt 00:05:59]} 44. Qe1 {[%clk 00:32:51]}
{[%emt 00:01:41]} Re6 {[%clk 00:21:14]} {[%emt 00:01:39]} 45. Reb2 {[%clk
00:31:16]} {[%emt 00:02:05]} Ra7 {[%clk 00:18:10]} {[%emt 00:03:34]} 46. Ne5
{[%clk 00:30:14]} {[%emt 00:01:33]} Qe7 {[%clk 00:17:54]} {[%emt 00:00:46]} 47.
Qc3 {[%clk 00:29:42]} {[%emt 00:01:00]} Ra8 {[%clk 00:10:55]} {[%emt 00:07:29]}
48. Rg2 {[%clk 00:27:31]} {[%emt 00:02:41]} Rc8 {[%clk 00:09:37]} {[%emt
00:01:48]} 49. Rb1 {[%clk 00:26:11]} {[%emt 00:01:50]} Rc7 {[%clk 00:08:28]}
{[%emt 00:01:39]} 50. Kh1 {[%clk 00:25:45]} {[%emt 00:00:57]} Qf6 {[%clk
00:08:14]} {[%emt 00:00:44]} 51. Qd3 {[%clk 00:18:14]} {[%emt 00:08:00]} Ne4
{[%clk 00:06:24]} {[%emt 00:02:20]} 52. a5 {[%clk 00:11:35]} {[%emt 00:07:09]}
Qf5 {[%clk 00:04:18]} {[%emt 00:02:37]} 53. Kg1 {[%clk 00:11:45]} {[%emt
00:00:20]} 1/2-1/2